bitfinex-derivatives/quotes_BTCF0:USTF0_20250318
["timestamp","ask_amount","ask_price","bid_price","bid_amount"]
[1742291207972,0.1601884,83201.0,83200.0,78.05372035]
[1742291208576,0.0600906,83206.0,83200.0,78.05372035]
[1742291208577,0.1201761,83210.0,83202.0,0.0600933]
[1742291208773,0.22,83223.0,83209.0,0.4208883]
[1742291209075,0.22,83223.0,83222.0,0.3608]
[1742291209379,0.3401566,83223.0,83222.0,0.3608]
[1742291209975,0.1201624,83219.0,83218.0,0.0418]
[1742291210185,0.3901624,83219.0,83218.0,0.0418]
[1742291211472,0.3961624,83219.0,83218.0,0.0418]
[1742291211683,0.5212024,83219.0,83218.0,0.0418]
[1742291211881,0.1201847,83204.0,83199.0,0.0018769]
[1742291212088,0.1201864,83203.0,83200.0,77.92892035]
[1742291212274,0.3901864,83203.0,83201.0,0.085]
[1742291212475,0.120187,83202.0,83201.0,0.0968034]
[1742291212685,0.360187,83202.0,83201.0,0.0968034]
[1742291213374,0.24,83202.0,83201.0,0.2169918]
[1742291214769,0.242,83202.0,83201.0,0.2169918]
[1742291214973,0.242,83202.0,83201.0,0.4024918]
[1742291215172,0.102,83202.0,83201.0,0.4024918]
[1742291215381,0.262,83202.0,83201.0,0.4024918]
[1742291215584,0.264,83202.0,83201.0,0.4024918]
[1742291216680,0.384187,83202.0,83201.0,0.4024918]
[1742291216880,0.384187,83202.0,83201.0,0.2823034]
[1742291217383,0.264,83202.0,83201.0,0.4024918]
[1742291222786,0.264,83202.0,83201.0,0.2524918]
[1742291229293,0.2182816,83202.0,83201.0,0.4024918]
[1742291233396,0.2182816,83202.0,83201.0,0.8140918]
[1742291235596,0.2182816,83202.0,83201.0,0.5435918]
[1742291236796,0.3003816,83202.0,83201.0,0.5435918]
[1742291237001,0.3003816,83202.0,83201.0,0.3458]
[1742291237002,0.55659674,83202.0,83201.0,0.3458]
[1742291237197,0.1201884,83201.0,83200.0,77.86396035]
[1742291237512,0.7409884,83201.0,83200.0,77.86316035]
[1742291238202,0.6208,83201.0,83200.0,77.98335025]
[1742291238387,0.7409884,83201.0,83200.0,77.98335025]
[1742291238585,0.7409884,83201.0,83200.0,77.98331025]
[1742291238786,0.7429884,83201.0,83200.0,77.86312035]
[1742291238992,0.7449884,83201.0,83200.0,77.86312035]
[1742291240004,0.7469884,83201.0,83200.0,77.98331025]
[1742291240195,0.7903884,83201.0,83200.0,77.86312035]
[1742291240395,0.8316884,83201.0,83200.0,77.86312035]
[1742291245507,0.8316884,83201.0,83200.0,77.79543493]
[1742291245800,0.8316884,83201.0,83200.0,77.72774952]
[1742291246508,0.8316884,83201.0,83200.0,77.68563809]
[1742291246705,0.9816884,83201.0,83200.0,77.68563809]
[1742291247200,0.9816884,83201.0,83200.0,77.64352666]
[1742291247606,0.9816884,83201.0,83200.0,77.60141523]
[1742291248001,0.9816884,83201.0,83200.0,77.5593038]
[1742291248397,0.9816884,83201.0,83200.0,77.51719237]
[1742291248707,0.9816884,83201.0,83200.0,77.47508094]
[1742291249101,0.9816884,83201.0,83200.0,77.43296951]
[1742291250108,0.9816884,83201.0,83200.0,77.35024192]
[1742291250803,0.9816884,83201.0,83200.0,77.30812493]
[1742291251008,1.3953884,83201.0,83200.0,77.22539544]
[1742291251305,1.3953884,83201.0,83200.0,77.18327845]
[1742291251704,1.3953884,83201.0,83200.0,77.14116146]
[1742291252105,1.3953884,83201.0,83200.0,77.09904447]
[1742291252610,1.3953884,83201.0,83200.0,77.05692748]
[1742291252802,1.3953884,83201.0,83200.0,77.01481049]
[1742291253413,1.3953884,83201.0,83200.0,76.9726935]
[1742291253707,1.3953884,83201.0,83200.0,76.93057651]
[1742291253908,1.5949884,83201.0,83200.0,76.93057651]
[1742291254101,1.5949884,83201.0,83200.0,76.50194927]
[1742291254503,1.5949884,83201.0,83200.0,76.45983228]
[1742291255011,1.5949884,83201.0,83200.0,76.1781953]
[1742291255201,1.5949884,83201.0,83200.0,76.13607831]
[1742291255602,1.5949884,83201.0,83200.0,76.09396132]
[1742291256011,1.5949884,83201.0,83200.0,75.98415357]
[1742291256410,1.5949884,83201.0,83200.0,75.94203321]
[1742291256813,1.5949884,83201.0,83200.0,75.89991285]
[1742291259511,1.5949884,83201.0,83200.0,75.85779249]
[1742291260214,1.5949884,83201.0,83200.0,75.77506167]
[1742291260515,1.5949884,83201.0,83200.0,75.65020963]
[1742291260716,1.4449884,83201.0,83200.0,75.60808927]
[1742291261105,1.4449884,83201.0,83200.0,75.51181623]
[1742291261608,1.5949884,83201.0,83200.0,75.46969587]
[1742291262004,1.5949884,83201.0,83200.0,75.42757551]
[1742291262399,1.5949884,83201.0,83200.0,75.38545515]
[1742291262812,1.5949884,83201.0,83200.0,75.34333479]
[1742291263201,1.5949884,83201.0,83200.0,75.30121443]
[1742291263507,1.5949884,83201.0,83200.0,75.25909407]
[1742291264003,1.5949884,83201.0,83200.0,75.21697371]
[1742291264400,1.5949884,83201.0,83200.0,75.17485335]
[1742291264905,1.5949884,83201.0,83200.0,75.13273361]
[1742291265110,1.5949884,83201.0,83200.0,75.09061387]
[1742291265608,1.5949884,83201.0,83200.0,75.04849413]
[1742291265998,1.5949884,83201.0,83200.0,75.00637439]
[1742291266400,1.5949884,83201.0,83200.0,75.00465465]
[1742291267110,1.5949884,83201.0,83200.0,74.96253491]
[1742291267313,1.5949884,83201.0,83200.0,74.86475932]
[1742291268106,1.5949884,83201.0,83200.0,74.72486296]
[1742291268305,1.5949884,83201.0,83200.0,74.64212886]
[1742291268514,1.5949884,83201.0,83200.0,74.53231759]
[1742291268917,1.5949884,83201.0,83200.0,74.49198385]
[1742291269915,1.4449884,83201.0,83200.0,74.49198385]
[1742291270912,1.4036884,83201.0,83200.0,74.49198385]
[1742291272216,1.4440884,83201.0,83200.0,74.49198385]
[1742291273519,1.4440884,83201.0,83200.0,74.4498631]
[1742291274016,1.4440884,83201.0,83200.0,74.36534235]
[1742291274216,1.5940884,83201.0,83200.0,72.59241476]
[1742291274517,1.5940884,83201.0,83200.0,72.43010391]
[1742291274910,1.5940884,83201.0,83200.0,72.38798316]
[1742291275115,1.5940884,83201.0,83200.0,72.33107678]
[1742291275313,1.5940884,83201.0,83200.0,72.14438523]
[1742291275706,1.5990884,83201.0,83200.0,72.10226448]
[1742291276107,1.5990884,83201.0,83200.0,72.06014373]
[1742291276315,1.5990884,83201.0,83200.0,71.97740181]
[1742291276515,1.5990884,83201.0,83200.0,72.01828106]
[1742291276817,1.5990884,83201.0,83200.0,71.97616031]
[1742291277209,1.5990884,83201.0,83200.0,71.93403956]
[1742291277409,1.5990884,83201.0,83200.0,71.85129666]
[1742291277610,1.5990884,83201.0,83200.0,71.80917591]
[1742291278021,1.5990884,83201.0,83200.0,71.76705516]
[1742291278427,1.5990884,83201.0,83200.0,71.68303441]
[1742291278720,1.4490884,83201.0,83200.0,71.68303441]
[1742291278922,1.4490884,83201.0,83200.0,71.64091366]
[1742291279423,1.4490884,83201.0,83200.0,71.28150183]
[1742291279624,1.4490884,83201.0,83200.0,71.18284379]
[1742291280015,1.4490884,83201.0,83200.0,71.14071935]
[1742291280419,1.4490884,83201.0,83200.0,71.09859491]
[1742291280619,1.4490884,83201.0,83200.0,71.07354791]
[1742291280812,1.4490884,83201.0,83200.0,71.03142347]
[1742291281013,1.4490884,83201.0,83200.0,70.99032347]
[1742291281014,1.5990884,83201.0,83200.0,70.99032347]
[1742291281322,1.5990884,83201.0,83200.0,70.94819903]
[1742291281720,1.5990884,83201.0,83200.0,70.88115359]
[1742291281924,1.5990884,83201.0,83200.0,70.92235359]
[1742291282114,1.5990884,83201.0,83200.0,70.88022915]
[1742291282423,1.5990884,83201.0,83200.0,70.83810471]
[1742291282826,1.5990884,83201.0,83200.0,70.79598027]
[1742291283213,1.5990884,83201.0,83200.0,70.75385583]
[1742291283619,1.5990884,83201.0,83200.0,70.71173139]
[1742291284025,1.5990884,83201.0,83200.0,70.75323139]
[1742291284325,1.5990884,83201.0,83200.0,70.57420475]
[1742291284530,1.5990884,83201.0,83200.0,70.53208031]
[1742291284919,2.4727684,83201.0,83200.0,70.48995587]
[1742291285221,2.3227684,83201.0,83200.0,70.3921683]
[1742291285427,2.3227684,83201.0,83200.0,70.26730295]
[1742291285829,2.3227684,83201.0,83200.0,70.22517851]
[1742291286130,2.3227684,83201.0,83200.0,70.18305407]
[1742291286629,2.3227684,83201.0,83200.0,70.14092963]
[1742291287131,2.3227684,83201.0,83200.0,70.09880944]
[1742291287312,2.3227684,83201.0,83200.0,70.05668925]
[1742291287713,2.3227684,83201.0,83200.0,70.01456906]
[1742291288229,2.3227684,83201.0,83200.0,69.97244887]
[1742291288419,2.3227684,83201.0,83200.0,69.93032868]
[1742291288820,2.3227684,83201.0,83200.0,69.88820849]
[1742291289221,2.3227684,83201.0,83200.0,69.8460883]
[1742291289625,2.3227684,83201.0,83200.0,69.80396811]
[1742291290224,2.3227684,83201.0,83200.0,69.76184792]
[1742291290633,2.3227684,83201.0,83200.0,69.71972773]
[1742291290932,2.3227684,83201.0,83200.0,69.67760754]
[1742291291434,2.3227684,83201.0,83200.0,69.63548735]
[1742291291833,2.3227684,83201.0,83200.0,69.59336716]
[1742291292135,2.3227684,83201.0,83200.0,69.55124697]
[1742291292520,2.3227684,83201.0,83200.0,69.50912678]
[1742291292930,2.3227684,83201.0,83200.0,69.46700659]
[1742291293324,2.3227684,83201.0,83200.0,69.4248864]
[1742291293820,2.3227684,83201.0,83200.0,69.38276621]
[1742291294236,2.3227684,83201.0,83200.0,69.34064389]
[1742291294430,2.3227684,83201.0,83200.0,69.29852157]
[1742291294935,2.3227684,83201.0,83200.0,69.25639925]
[1742291295437,2.3227684,83201.0,83200.0,69.21427693]
[1742291295731,2.3227684,83201.0,83200.0,69.17215461]
[1742291295937,2.3227684,83201.0,83200.0,69.12223461]
[1742291296126,2.3227684,83201.0,83200.0,68.06726959]
[1742291296326,2.3227684,83201.0,83200.0,67.34533212]
[1742291296523,2.3227684,83201.0,83200.0,66.70146223]
[1742291296736,2.3227684,83201.0,83200.0,66.05851466]
[1742291296935,2.3227684,83201.0,83200.0,66.05979234]
[1742291297334,2.3227684,83201.0,83200.0,66.01767002]
[1742291297542,2.3227684,83201.0,83200.0,65.93492137]
[1742291297752,2.3227684,83201.0,83200.0,65.89279905]
[1742291297941,2.3227684,83201.0,83200.0,65.75890162]
[1742291298139,2.3227684,83201.0,83200.0,65.7167793]
[1742291298442,2.3227684,83201.0,83200.0,65.06095957]
[1742291298649,2.3227684,83201.0,83200.0,65.01883725]
[1742291299039,2.3227684,83201.0,83200.0,64.97671493]
[1742291299239,2.3227684,83201.0,83200.0,64.57410008]
[1742291299444,2.3227684,83201.0,83200.0,64.53197776]
[1742291299648,2.4435284,83201.0,83200.0,64.53197776]
[1742291299949,2.4435284,83201.0,83200.0,64.53265544]
[1742291300144,2.4435284,83201.0,83200.0,64.49053312]
[1742291300543,2.3227684,83201.0,83200.0,64.4484108]
[1742291300746,2.4434484,83201.0,83200.0,64.4484108]
[1742291300946,2.4434484,83201.0,83200.0,64.40628848]
[1742291301451,2.4434484,83201.0,83200.0,64.36416616]
[1742291301748,2.4434484,83201.0,83200.0,64.32204226]
[1742291302146,2.4434484,83201.0,83200.0,64.27991836]
[1742291302348,2.4030484,83201.0,83200.0,64.18213171]
[1742291302538,2.4030484,83201.0,83200.0,64.14000781]
[1742291302936,2.4030484,83201.0,83200.0,64.09788391]
[1742291303351,2.4030484,83201.0,83200.0,64.05576001]
[1742291303735,2.4030484,83201.0,83200.0,64.01363611]
[1742291304138,2.4030484,83201.0,83200.0,63.97151221]
[1742291304544,2.4575484,83201.0,83200.0,63.83160343]
[1742291304949,2.4575484,83201.0,83200.0,63.70673674]
[1742291305349,2.4575484,83201.0,83200.0,63.66461284]
[1742291305750,2.4030484,83201.0,83200.0,63.53974792]
[1742291306253,2.4030484,83201.0,83200.0,63.49762402]
[1742291306655,2.4030484,83201.0,83200.0,63.45550012]
[1742291307046,2.4030484,83201.0,83200.0,63.41337622]
[1742291307555,2.4030484,83201.0,83200.0,63.37125232]
[1742291307856,2.4030484,83201.0,83200.0,63.32912842]
[1742291308245,2.4572484,83201.0,83200.0,63.28700452]
[1742291308556,2.4572484,83201.0,83200.0,63.24488062]
[1742291309054,2.4572484,83201.0,83200.0,63.20276041]
[1742291309549,2.4572484,83201.0,83200.0,63.1606402]
[1742291309748,2.4572484,83201.0,83200.0,63.11851999]
[1742291310156,2.4572484,83201.0,83200.0,63.07639978]
[1742291310655,2.4572484,83201.0,83200.0,63.03427957]
[1742291310956,2.4572484,83201.0,83200.0,62.99215936]
[1742291311456,2.4572484,83201.0,83200.0,62.95003915]
[1742291311954,2.4572484,83201.0,83200.0,62.85376023]
[1742291312154,2.4572484,83201.0,83200.0,62.81164002]
[1742291312658,2.3365684,83201.0,83200.0,62.67173324]
[1742291312959,2.4566884,83201.0,83200.0,62.54687055]
[1742291314049,2.4566884,83201.0,83200.0,62.42200799]
[1742291314447,2.4566884,83201.0,83200.0,62.37988778]
[1742291315355,2.4566884,83201.0,83200.0,62.33776757]
[1742291315754,2.4566884,83201.0,83200.0,62.29564736]
[1742291316144,2.4566884,83201.0,83200.0,62.25352715]
[1742291316658,2.4566884,83201.0,83200.0,62.21140472]
[1742291317057,2.4566884,83201.0,83200.0,62.16928229]
[1742291317449,2.4566884,83201.0,83200.0,62.12715986]
[1742291317650,0.1201956,83196.0,83170.0,0.11212967]
[1742291317953,0.3801956,83196.0,83170.0,0.11212967]
[1742291318151,0.4830956,83196.0,83170.0,0.11212967]
[1742291318559,1.3568556,83196.0,83170.0,0.11212967]
[1742291319953,1.3618556,83196.0,83195.0,0.00091836]
[1742291320155,1.3658556,83196.0,83195.0,0.00091836]
[1742291320956,0.1201971,83195.0,83194.0,0.1056374]
[1742291321142,0.8607171,83195.0,83194.0,0.1056374]
[1742291321347,0.9688171,83195.0,83194.0,0.03793874]
[1742291321757,0.1202043,83190.0,83170.0,0.11212967]
[1742291321959,0.7210043,83190.0,83170.0,0.11212967]
[1742291322148,0.1202318,83171.0,83170.0,0.051152]
[1742291322349,0.1202347,83169.0,83160.0,0.22180834]
[1742291322550,0.3902347,83169.0,83168.0,0.15290773]
[1742291323946,0.3902347,83169.0,83168.0,0.15490773]
[1742291324953,0.3902347,83169.0,83168.0,0.20920773]
[1742291325359,0.3902347,83169.0,83168.0,0.05920773]
[1742291326862,0.3902347,83169.0,83168.0,0.0543]
[1742291327064,0.1202361,83168.0,83167.0,0.04330633]
[1742291327358,0.3802361,83168.0,83167.0,0.04330633]
[1742291328654,0.3802361,83168.0,83167.0,0.09500633]
[1742291330165,0.3802361,83168.0,83167.0,0.14640633]
[1742291332468,0.4346361,83168.0,83167.0,0.14640633]
[1742291332670,0.3802361,83168.0,83167.0,0.14640633]
[1742291334662,0.4315361,83168.0,83167.0,0.14640633]
[1742291336073,0.4848361,83168.0,83167.0,0.14640633]
[1742291336279,0.4315361,83168.0,83167.0,0.14640633]
[1742291337766,0.4849361,83168.0,83167.0,0.14640633]
[1742291339976,0.8457361,83168.0,83167.0,0.14640633]
[1742291346271,0.8457361,83168.0,83167.0,0.15852597]
[1742291350079,0.8457361,83168.0,83167.0,0.09082581]
[1742291350385,0.8457361,83168.0,83167.0,0.03942581]
[1742291351086,0.8457361,83168.0,83165.0,4e-05]
[1742291351087,0.1202419,83164.0,83163.0,0.03256298]
[1742291351280,0.5185619,83164.0,83163.0,0.03256298]
[1742291351678,0.5087419,83164.0,83163.0,0.03256298]
[1742291351984,0.6269419,83164.0,83163.0,0.03256298]
[1742291352280,0.6269419,83164.0,83163.0,0.04450541]
[1742291352982,0.6817419,83164.0,83163.0,0.04450541]
[1742291353582,0.6817419,83164.0,83163.0,0.08360541]
[1742291354085,0.6817419,83164.0,83163.0,0.13200541]
[1742291358387,0.6817419,83164.0,83163.0,0.09944243]
[1742291358988,0.6817419,83164.0,83163.0,0.0875]
[1742291359287,0.1202433,83163.0,83162.0,0.00308071]
[1742291359498,0.3602433,83163.0,83162.0,0.00308071]
[1742291359681,0.4652433,83163.0,83162.0,0.00308071]
[1742291362681,0.4652433,83163.0,83162.0,0.00084477]
[1742291372498,0.1202462,83161.0,83160.0,61.89169214]
[1742291372685,0.1202462,83161.0,83160.0,61.8487613]
[1742291372686,0.3602462,83161.0,83160.0,61.8487613]
[1742291372891,0.4133462,83161.0,83160.0,61.8487613]
[1742291373197,0.4133462,83161.0,83160.0,61.80663046]
[1742291373399,0.4133462,83161.0,83160.0,61.76449962]
[1742291373795,0.4133462,83161.0,83160.0,61.72236878]
[1742291374195,0.4133462,83161.0,83160.0,61.68023794]
[1742291375499,0.4163462,83161.0,83160.0,61.68023794]
[1742291375701,0.4734462,83161.0,83160.0,61.68023794]
[1742291376092,0.4754462,83161.0,83160.0,61.68023794]
[1742291377999,0.5932462,83161.0,83160.0,61.68023794]
[1742291378602,0.5932462,83161.0,83160.0,61.78133794]
[1742291380407,0.5932462,83161.0,83160.0,61.73383794]
[1742291381103,0.5932462,83161.0,83160.0,61.68023794]
[1742291382406,0.5932462,83161.0,83160.0,61.61252354]
[1742291383014,0.4754462,83161.0,83160.0,61.61252354]
[1742291384017,1.3493262,83161.0,83160.0,61.61252354]
[1742291384699,1.3493262,83161.0,83160.0,61.54480941]
[1742291384904,1.4670862,83161.0,83160.0,61.54480941]
[1742291387613,1.4670862,83161.0,83160.0,61.46204366]
[1742291388214,1.4670862,83161.0,83160.0,61.37927756]
[1742291388807,1.4670862,83161.0,83160.0,61.31274367]
[1742291389310,1.4670862,83161.0,83160.0,61.27060978]
[1742291389518,1.4670862,83161.0,83160.0,61.22847589]
[1742291389717,1.4670862,83161.0,83160.0,61.12144389]
[1742291389911,1.4670862,83161.0,83160.0,61.07931]
[1742291390419,1.4670862,83161.0,83160.0,61.03717611]
[1742291394022,0.1202491,83159.0,83158.0,0.0030899]
[1742291394324,0.7210491,83159.0,83158.0,0.0030899]
[1742291394514,0.8390491,83159.0,83158.0,0.0030899]
[1742291395016,0.8390491,83159.0,83156.0,0.00311908]
[1742291395220,0.8390491,83159.0,83156.0,0.00199185]
[1742291395221,0.120252,83157.0,83156.0,0.00199185]
[1742291395408,0.400252,83157.0,83156.0,0.00199185]
[1742291395614,0.514652,83157.0,83156.0,0.00199185]
[1742291395810,0.1202534,83156.0,83155.0,0.01320943]
[1742291396024,0.4746534,83156.0,83155.0,0.06070943]
[1742291396720,0.5373534,83156.0,83155.0,0.06070943]
[1742291397623,0.5443534,83156.0,83155.0,0.06070943]
[1742291398026,0.5443534,83156.0,83155.0,0.01320943]
[1742291398525,0.1202549,83155.0,83147.0,0.0607]
[1742291398836,0.7510549,83155.0,83147.0,0.0607]
[1742291399030,0.8686549,83155.0,83151.0,0.0575]
[1742291399823,0.8726549,83155.0,83151.0,0.0575]
[1742291400123,0.8756549,83155.0,83151.0,0.0575]
[1742291400828,0.8756549,83155.0,83153.0,0.0575]
[1742291401327,0.1202578,83153.0,83137.0,0.00403053]
[1742291401528,0.3502578,83153.0,83151.0,0.0575]
[1742291401728,0.4652578,83153.0,83151.0,0.0575]
[1742291401916,0.4652578,83153.0,83137.0,0.00403053]
[1742291402223,0.4652578,83153.0,83148.0,0.00340206]
[1742291402529,0.1202607,83151.0,83150.0,0.00246512]
[1742291402716,0.4978207,83151.0,83148.0,0.00340206]
[1742291402921,0.4978207,83151.0,83144.0,0.0036921]
[1742291402922,0.1202694,83145.0,83144.0,2e-08]
[1742291403226,0.1202723,83143.0,83142.0,9e-08]
[1742291403428,0.1202766,83140.0,83139.0,7e-08]
[1742291403613,0.7210766,83140.0,83139.0,7e-08]
[1742291403815,0.7786766,83140.0,83139.0,7e-08]
[1742291404520,0.1202824,83136.0,83132.0,4e-05]
[1742291404827,1.3517624,83136.0,83132.0,4e-05]
[1742291405129,1.4141624,83136.0,83131.0,0.00386405]
[1742291405525,0.1202896,83131.0,83130.0,0.00177009]
[1742291405731,0.7310896,83131.0,83128.0,0.06014]
[1742291405922,0.7310896,83131.0,83115.0,0.00439877]
[1742291405923,0.120294,83128.0,83127.0,0.00069731]
[1742291406123,0.751094,83128.0,83127.0,0.00069731]
[1742291406321,0.868534,83128.0,83127.0,0.00069731]
[1742291406524,0.926734,83128.0,83127.0,0.00069731]
[1742291406723,0.926734,83128.0,83127.0,0.16604338]
[1742291406724,0.6308,83128.0,83127.0,0.16604338]
[1742291407030,0.507694,83128.0,83127.0,0.16604338]
[1742291407230,0.507694,83128.0,83127.0,0.01604338]
[1742291407821,0.507694,83128.0,83127.0,0.00069731]
[1742291408522,0.507894,83128.0,83127.0,0.00069731]
[1742291408931,0.390294,83128.0,83127.0,0.04699731]
[1742291409131,0.390294,83128.0,83127.0,0.05229731]
[1742291409132,0.507894,83128.0,83127.0,0.05229731]
[1742291411133,0.448994,83128.0,83127.0,0.05229731]
[1742291411522,0.628854,83128.0,83127.0,0.05229731]
[1742291411735,0.566554,83128.0,83127.0,0.05229731]
[1742291412323,0.927354,83128.0,83127.0,0.05229731]
[1742291412627,0.989654,83128.0,83127.0,0.05229731]
[1742291414024,0.989654,83128.0,83127.0,0.04699731]
[1742291414224,0.989654,83128.0,83127.0,0.00069731]
[1742291421230,0.989654,83128.0,83127.0,0.00026879]
[1742291421544,0.989414,83128.0,83127.0,0.00026879]
[1742291421743,0.989414,83128.0,83124.0,0.0462]
[1742291421744,0.1202983,83125.0,83124.0,0.00296742]
[1742291421939,0.3902983,83125.0,83124.0,0.00296742]
[1742291422142,0.4049605,83125.0,83124.0,0.00296742]
[1742291422438,0.5290605,83125.0,83124.0,0.00296742]
[1742291423250,0.8898605,83125.0,83124.0,0.00296742]
[1742291423939,0.8751983,83125.0,83124.0,0.00296742]
[1742291424346,0.9923983,83125.0,83124.0,0.00826742]
[1742291425334,1.0758983,83125.0,83124.0,0.00826742]
[1742291430139,0.9923983,83125.0,83124.0,0.00826742]
[1742291432244,0.9923983,83125.0,83121.0,0.0045389]
[1742291432245,0.1202997,83124.0,83123.0,0.00012879]
[1742291432438,0.5430997,83124.0,83123.0,0.00012879]
[1742291432644,0.6610597,83124.0,83123.0,0.00012879]
[1742291441049,0.1203055,83120.0,83119.0,0.00285665]
[1742291441250,0.3603055,83120.0,83119.0,0.00285665]
[1742291441451,0.6129055,83120.0,83119.0,0.00285665]
[1742291442457,0.1203113,83116.0,83113.0,0.0048626]
[1742291442760,0.1203186,83111.0,83110.0,60.98436479]
[1742291442961,0.3703186,83111.0,83110.0,60.98356479]
[1742291443459,0.6229186,83111.0,83110.0,60.98356479]
[1742291443647,0.63708749,83111.0,83110.0,60.98356479]
[1742291444050,0.6229186,83111.0,83110.0,60.98356479]
[1742291444562,0.6229186,83111.0,83110.0,61.06066479]
[1742291444758,0.7406786,83111.0,83110.0,61.13606479]
[1742291446261,0.7406786,83111.0,83110.0,60.98356479]
[1742291447564,0.7416786,83111.0,83110.0,60.98356479]
[1742291447760,0.7436786,83111.0,83110.0,60.98356479]
[1742291448564,0.12032,83110.0,83108.0,0.1525]
[1742291448863,0.39032,83110.0,83107.0,0.00490803]
[1742291449163,0.55762,83110.0,83108.0,0.1525]
[1742291449461,0.55762,83110.0,83109.0,0.08208896]
[1742291449655,0.55762,83110.0,83109.0,0.15748896]
[1742291449854,0.55862,83110.0,83109.0,0.15748896]
[1742291450055,0.55862,83110.0,83109.0,0.00498896]
[1742291450665,0.55962,83110.0,83109.0,0.00498896]
[1742291451760,0.55962,83110.0,83109.0,0.08208896]
[1742291452467,0.55962,83110.0,83109.0,0.00498896]
[1742291456765,0.55962,83110.0,83107.0,0.15740803]
[1742291456766,0.1203229,83108.0,83107.0,0.00490803]
[1742291457070,0.1203229,83108.0,83100.0,0.1]
[1742291457071,0.1203287,83104.0,83100.0,0.1]
[1742291457369,0.120333,83101.0,83100.0,0.00030179]
[1742291457559,0.350333,83101.0,83100.0,0.00030179]
[1742291457757,0.615833,83101.0,83100.0,0.00030179]
[1742291457956,0.6248113,83101.0,83100.0,0.00030179]
[1742291458259,0.7426113,83101.0,83100.0,0.00030179]
[1742291459167,0.6248113,83101.0,83100.0,0.00030179]
[1742291459361,0.7427713,83101.0,83100.0,0.00030179]
[1742291459764,0.6248113,83101.0,83100.0,0.00030179]
[1742291459963,0.7427713,83101.0,83100.0,0.00030179]
[1742291462261,0.7426513,83101.0,83100.0,0.00030179]
[1742291462967,0.6524513,83101.0,83100.0,0.18180179]
[1742291464272,0.5346113,83101.0,83100.0,0.18180179]
[1742291464573,0.6524913,83101.0,83100.0,0.18180179]
[1742291473569,0.5346113,83101.0,83100.0,0.18180179]
[1742291473769,0.34772,83101.0,83100.0,0.30213629]
[1742291473967,0.34772,83101.0,83100.0,0.45213629]
[1742291474270,0.468053,83101.0,83100.0,0.18180179]
[1742291474678,0.644953,83101.0,83100.0,0.18180179]
[1742291475272,0.65387158,83101.0,83100.0,0.00030179]
[1742291477378,0.1203345,83100.0,83099.0,0.17632182]
[1742291477584,0.1203345,83100.0,83099.0,0.26532182]
[1742291477585,0.3703345,83100.0,83099.0,0.26532182]
[1742291477881,0.5523345,83100.0,83099.0,0.26532182]
[1742291478283,0.6706145,83100.0,83099.0,0.26532182]
[1742291479075,0.6706145,83100.0,83099.0,0.19756848]
[1742291480885,0.6706145,83100.0,83099.0,0.10856848]
[1742291484484,0.6706145,83100.0,83099.0,0.22890438]
[1742291484485,0.6704145,83100.0,83099.0,0.22890438]
[1742291487381,0.6704145,83100.0,83099.0,0.093]
[1742291487789,0.6704145,83100.0,83099.0,0.2133359]
[1742291491191,0.1203359,83099.0,83098.0,0.00492792]
[1742291491491,0.3503359,83099.0,83098.0,0.00492792]
[1742291491683,0.5295359,83099.0,83098.0,0.00492792]
[1742291492584,0.1203388,83097.0,83096.0,0.00247359]
[1742291492781,0.3703388,83097.0,83096.0,0.00247359]
[1742291493182,0.4641388,83097.0,83096.0,0.00247359]
[1742291493485,0.5520388,83097.0,83096.0,0.12281389]
[1742291493683,0.5520388,83097.0,83096.0,0.14746022]
[1742291493884,0.5520388,83097.0,83096.0,0.0924]
[1742291494592,0.5510388,83097.0,83096.0,0.0924]
[1742291495184,0.5510388,83097.0,83096.0,0.0934]
[1742291495583,0.6698788,83097.0,83096.0,0.001]
[1742291501695,0.6698788,83097.0,83096.0,0.01485759]
[1742291504895,0.6698788,83097.0,83096.0,0.13519789]
[1742291505098,0.08908515,83097.0,83096.0,0.15619789]
[1742291505297,0.08908515,83097.0,83096.0,0.24369789]
[1742291506000,0.08908515,83097.0,83096.0,0.65529789]
[1742291506298,0.06,83097.0,83096.0,1.01609789]
[1742291506903,0.06,83097.0,83096.0,1.13461789]
[1742291507101,0.0603417,83109.0,83108.0,0.1203229]
[1742291507304,0.3203417,83109.0,83108.0,0.3764229]
[1742291507801,0.2601804,83109.0,83108.0,0.3764229]
[1742291508305,0.2621804,83109.0,83108.0,0.3764229]
[1742291508689,0.0907,83111.0,83110.0,0.12032]
[1742291508893,0.541277,83113.0,83112.0,0.05257744]
[1742291509100,0.791277,83113.0,83112.0,0.05257744]
[1742291509304,0.6709584,83113.0,83112.0,0.05257744]
[1742291509494,0.6709584,83113.0,83112.0,0.22587744]
[1742291510088,0.25,83113.0,83112.0,0.22587744]
[1742291511689,0.252,83113.0,83112.0,0.22587744]
[1742291512506,0.254,83113.0,83112.0,0.22587744]
[1742291512696,0.3743157,83113.0,83112.0,0.22587744]
[1742291513205,0.4606157,83113.0,83112.0,0.14597744]
[1742291514508,0.4606157,83113.0,83112.0,0.0934]
[1742291515107,0.4606157,83113.0,83112.0,0.2137171]
[1742291515400,0.1203171,83112.0,83111.0,0.4116]
[1742291515605,0.4003171,83112.0,83111.0,0.4116]
[1742291515807,0.4870171,83112.0,83111.0,0.4116]
[1742291516099,0.4870171,83112.0,83111.0,0.5319186]
[1742291516805,0.4890171,83112.0,83111.0,0.5319186]
[1742291517905,0.4890171,83112.0,83111.0,0.1203186]
[1742291518105,0.4910171,83112.0,83111.0,0.1203186]
[1742291520009,0.4910171,83112.0,83110.0,0.0601599]
[1742291520010,0.12032,83110.0,83109.0,4e-05]
[1742291520210,0.27,83110.0,83109.0,0.08974]
[1742291520509,0.27,83110.0,83109.0,0.2100615]
[1742291520710,0.359,83110.0,83109.0,0.2100615]
[1742291521302,0.48032,83110.0,83109.0,0.2100615]
[1742291521611,0.48032,83110.0,83109.0,4e-05]
[1742291522113,0.48132,83110.0,83109.0,4e-05]
[1742291524313,0.84212,83110.0,83109.0,4e-05]
[1742291525106,0.1203272,83105.0,83104.0,0.00018051]
[1742291525312,0.4798472,83105.0,83104.0,0.00018051]
[1742291525504,0.5750472,83105.0,83104.0,0.00018051]
[1742291526425,0.6687472,83105.0,83104.0,0.00018051]
[1742291531710,0.6687472,83105.0,83096.0,0.3608]
[1742291531917,0.1203417,83095.0,83094.0,0.00509262]
[1742291532216,0.1203475,83091.0,83090.0,60.98996256]
[1742291532514,0.4103475,83091.0,83090.0,60.98916256]
[1742291532818,0.5962475,83091.0,83090.0,60.98916256]
[1742291533015,0.60431916,83091.0,83090.0,60.98916256]
[1742291534121,0.60331916,83091.0,83090.0,60.98916256]
[1742291534820,0.60331916,83091.0,83090.0,60.99016256]
[1742291535206,0.69331916,83091.0,83090.0,60.99016256]
[1742291536322,0.57497166,83091.0,83090.0,60.99016256]
[1742291536513,0.81467916,83091.0,83090.0,60.99016256]
[1742291537306,0.81467916,83091.0,83090.0,60.98916256]
[1742291540122,0.81467916,83091.0,83090.0,61.08176256]